fUST/lending_fUST_20240329
["ID","MTS","AMOUNT","RATE_DAILY","PERIOD"]
[320912276,1711704648324,-500.0,0.00052999,120]
[320912277,1711704648335,-500.0,0.00052999,120]
[320912278,1711704648344,-500.0,0.00052999,120]
[320912279,1711704648354,-500.0,0.00052999,120]
[320912280,1711704648364,-500.0,0.00052999,120]
[320912281,1711704648374,-500.0,0.00052999,120]
[320912282,1711704648384,-500.0,0.00052999,120]
[320912283,1711704648393,-500.0,0.00052999,120]
[320912284,1711704648402,-500.0,0.00052999,120]
[320912285,1711704648412,-500.0,0.00052999,120]
[320912286,1711704648421,-500.0,0.00052999,120]
[320912287,1711704648431,-290.08,0.00052999,120]
[320912288,1711704648440,-398741.59920975,0.00053,15]
[320912289,1711704648520,-196291.41869829,0.00053,15]
[320912290,1711704648566,-3773.78316575,0.00053,15]
[320912291,1711704648580,-841.1231325,0.00053,15]
[320912292,1711704648653,-1724.37488296,0.00053,15]
[320912299,1711704965230,1520.85488646,0.00018,2]
[320912306,1711705581335,276.44937438,0.000189,2]
[320912307,1711705581524,276.44937438,0.000239,2]
[320912308,1711705581720,276.44937438,0.000289,2]
[320912324,1711705794315,339.00600151,0.00041145,30]
[320912356,1711705833703,-179.600292,0.0004,2]
[320912357,1711705833713,-3186.28931036,0.00041135,120]
[320912358,1711705833722,-1415.2103961,0.00041136,4]
[320912360,1711705833731,-344.0,0.00041145,30]
[320912361,1711705833741,-166.666666,0.00049465,2]
[320912364,1711705833750,-267.637263,0.00049611,120]
[320912365,1711705833760,-7823.92371038,0.00050098,2]
[320912368,1711705833772,-4419.43643022,0.00050098,2]
[320912370,1711705833782,-4003.87091802,0.00050222,4]
[320912372,1711705833791,-243.144153,0.00050463,2]
[320912374,1711705833800,-167.658928,0.00050511,2]
[320912376,1711705833810,-306.0,0.00051,120]
[320912378,1711705833819,-306.0,0.00051027,120]
[320912380,1711705833828,-150.0,0.000519,82]
[320912382,1711705833838,-193.0685937,0.00051952,2]
[320912384,1711705833848,-445.12506982,0.0005199,30]
[320912386,1711705833857,-411.93381832,0.00052,120]
[320912388,1711705833866,-4000.0,0.00052,3]
[320912390,1711705833875,-200.0,0.00052,2]
[320912391,1711705833885,-223.20921981,0.00052052,4]
[320912393,1711705833894,-377.65620019,0.00052052,4]
[320912395,1711705833904,-684.30913271,0.00052052,4]
[320912397,1711705833913,-5783.24095749,0.00052053,61]
[320912399,1711705833923,-156.39858452,0.00052053,4]
[320912401,1711705833932,-1922.02642136,0.00052053,4]
[320912403,1711705833941,-1000.0,0.00052053,2]
[320912405,1711705833950,-40604.68858565,0.00052053,3]
[320912447,1711705843080,-226604.70924634,0.00052053,3]
[320912449,1711705843146,-64537.01796375,0.00052053,3]
[320912450,1711705843155,-222.69418718,0.00052054,120]
[320912451,1711705843164,-500.0,0.00052054,120]
[320912452,1711705843174,-500.0,0.00052054,120]
[320912453,1711705843183,-500.0,0.00052054,120]
[320912454,1711705843192,-500.0,0.00052054,120]
[320912455,1711705843202,-154.9690062,0.00052054,120]
[320912456,1711705843212,-500.0,0.00052054,120]
[320912457,1711705843221,-500.0,0.00052054,120]
[320912458,1711705843230,-500.65743084,0.00052054,120]
[320912459,1711705843239,-237.23412776,0.00052054,120]
[320912460,1711705843249,-500.0,0.00052054,120]
[320912461,1711705843258,-500.0,0.00052054,120]
[320912462,1711705843267,-500.0,0.00052054,120]
[320912464,1711705843277,-500.0,0.00052054,120]
[320912466,1711705843289,-500.0,0.00052054,120]
[320912468,1711705843299,-500.0,0.00052054,120]
[320912469,1711705843308,-500.0,0.00052054,120]
[320912470,1711705843317,-500.0,0.00052054,120]
[320912472,1711705843331,-1174.55,0.00052054,120]
[320912474,1711705843345,-500.0,0.00052054,120]
[320912477,1711705843360,-500.89567553,0.00052054,120]
[320912479,1711705843373,-500.0,0.00052054,120]
[320912481,1711705843386,-500.0,0.00052054,120]
[320912482,1711705843397,-500.0,0.00052054,120]
[320912483,1711705843410,-500.0,0.00052054,120]
[320912484,1711705843423,-500.06662195,0.00052054,120]
[320912485,1711705843437,-500.0,0.00052054,120]
[320912486,1711705843450,-503.22681672,0.00052054,120]
[320912487,1711705843463,-602.37902308,0.00052054,120]
[320912488,1711705843476,-500.0,0.00052054,120]
[320912489,1711705843488,-500.0,0.00052054,120]
[320912490,1711705843499,-500.0,0.00052054,120]
[320912493,1711705843512,-500.0,0.00052054,120]
[320912495,1711705843524,-500.0,0.00052054,120]
[320912497,1711705843536,-500.0,0.00052054,120]
[320912498,1711705843549,-500.0,0.00052054,120]
[320912500,1711705843561,-500.0,0.00052054,120]
[320912502,1711705843575,-500.0,0.00052054,120]
[320912504,1711705843586,-501.06709871,0.00052054,120]
[320912507,1711705843596,-500.0,0.00052054,120]
[320912509,1711705843609,-500.30487517,0.00052054,120]
[320912511,1711705843622,-500.0,0.00052054,120]
[320912513,1711705843635,-500.0,0.00052054,120]
[320912514,1711705843648,-400.91654826,0.00052054,120]
[320912515,1711705843660,-960.77,0.00052054,2]
[320912516,1711705843672,-500.0,0.00052054,120]
[320912517,1711705843685,-500.0,0.00052054,120]
[320912518,1711705843697,-500.0,0.00052054,120]
[320912519,1711705843710,-404.34,0.00052054,120]
[320912520,1711705843723,-501.38225661,0.00052054,120]
[320912521,1711705843736,-500.0,0.00052054,120]
[320912522,1711705843750,-500.0,0.00052054,120]
[320912523,1711705843764,-500.0,0.00052054,120]
[320912524,1711705843793,-500.0,0.00052054,120]
[320912525,1711705843804,-500.0,0.00052054,120]
[320912526,1711705843814,-500.0,0.00052054,120]
[320912527,1711705843826,-500.0,0.00052054,120]
[320912528,1711705843838,-500.0,0.00052054,120]
[320912529,1711705843850,-630.88126579,0.00052054,120]
[320912530,1711705843861,-500.0,0.00052054,120]
[320912531,1711705843873,-500.0,0.00052054,120]
[320912532,1711705843885,-500.0,0.00052054,120]
[320912533,1711705843896,-1000.0,0.00052054,120]
[320912534,1711705843907,-500.0,0.00052054,120]
[320912535,1711705843917,-500.0,0.00052054,120]
[320912536,1711705843928,-500.0,0.00052054,120]
[320912537,1711705843940,-500.0,0.00052054,120]
[320912538,1711705843952,-500.0,0.00052054,120]
[320912539,1711705843963,-500.0,0.00052054,120]
[320912540,1711705843975,-500.0,0.00052054,120]
[320912541,1711705843986,-500.0,0.00052054,120]
[320912542,1711705843997,-500.0,0.00052054,120]
[320912543,1711705844009,-500.0,0.00052054,120]
[320912544,1711705844021,-500.0,0.00052054,120]
[320912545,1711705844033,-500.0,0.00052054,120]
[320912546,1711705844045,-500.0,0.00052054,120]
[320912547,1711705844056,-500.0,0.00052054,120]
[320912548,1711705844068,-500.0,0.00052054,120]
[320912549,1711705844080,-555.70326739,0.00052054,120]
[320912550,1711705844093,-500.0,0.00052054,120]
[320912551,1711705844104,-500.0,0.00052054,120]
[320912552,1711705844116,-500.0,0.00052054,120]
[320912553,1711705844127,-2930.45,0.00052054,120]
[320912554,1711705844139,-500.0,0.00052054,120]
[320912555,1711705844150,-500.0,0.00052054,120]
[320912556,1711705844161,-500.0,0.00052054,120]
[320912557,1711705844173,-500.0,0.00052054,120]
[320912558,1711705844184,-500.0,0.00052054,120]
[320912559,1711705844196,-1242.54,0.00052054,120]
[320912560,1711705844207,-500.0,0.00052054,120]
[320912561,1711705844217,-500.0,0.00052054,120]
[320912562,1711705844229,-500.0,0.00052054,120]
[320912563,1711705844240,-500.0,0.00052054,120]
[320912564,1711705844251,-500.0,0.00052054,120]
[320912565,1711705844262,-629.21,0.00052054,120]
[320912566,1711705844273,-500.42770392,0.00052054,120]
[320912567,1711705844282,-500.0,0.00052054,120]
[320912568,1711705844292,-500.0,0.00052054,120]
[320912569,1711705844415,-1774.19,0.00052054,120]
[320912570,1711705844430,-607.42,0.00052054,120]
[320912571,1711705844443,-733.98,0.00052054,120]
[320912572,1711705844452,-501.07858566,0.00052054,120]
[320912573,1711705844462,-500.0,0.00052054,120]
[320912574,1711705844472,-2281.43,0.00052054,120]
[320912575,1711705844481,-500.0,0.00052054,120]
[320912576,1711705844491,-1233.8,0.00052054,120]
[320912577,1711705844500,-1796.29,0.00052054,120]
[320912578,1711705844509,-528.43,0.00052054,120]
[320912579,1711705844518,-500.0,0.00052054,120]
[320912580,1711705844528,-7923.48,0.00052054,120]
[320912581,1711705844537,-500.45477739,0.00052054,120]
[320912582,1711705844547,-500.0,0.00052054,120]
[320912583,1711705844556,-500.0,0.00052054,120]
[320912584,1711705844565,-1236.16,0.00052054,120]
[320912585,1711705844576,-500.0,0.00052054,120]
[320912586,1711705844586,-500.0,0.00052054,120]
[320912587,1711705844595,-1252.98,0.00052054,120]
[320912588,1711705844605,-500.0,0.00052054,120]
[320912589,1711705844615,-16523.68,0.00052054,90]
[320912590,1711705844624,-715.72,0.00052054,120]
[320912591,1711705844634,-500.0,0.00052054,120]
[320912592,1711705844643,-4151.06,0.00052054,21]
[320912593,1711705844653,-282.9769836,0.00052054,120]
[320912594,1711705844662,-500.0,0.00052054,120]
[320912595,1711705844671,-500.0,0.00052054,120]
[320912596,1711705844680,-1065.81,0.00052054,120]
[320912597,1711705844690,-696.95,0.00052054,120]
[320912598,1711705844699,-500.0,0.00052054,120]
[320912599,1711705844708,-500.0,0.00052054,120]
[320912600,1711705844717,-500.0,0.00052054,120]
[320912601,1711705844727,-500.0,0.00052054,120]
[320912602,1711705844736,-500.0,0.00052054,120]
[320912603,1711705844746,-500.0,0.00052054,120]
[320912604,1711705844755,-500.0,0.00052054,60]
[320912605,1711705844764,-603.22900611,0.00052054,120]
[320912606,1711705844773,-5891.45,0.00052054,120]
[320912607,1711705844782,-500.0,0.00052054,120]
[320912608,1711705844791,-1932.01,0.00052054,120]
[320912609,1711705844801,-500.0,0.00052054,120]
[320912610,1711705844809,-500.0,0.00052054,120]
[320912611,1711705844818,-500.0,0.00052054,120]
[320912612,1711705844830,-781.2,0.00052054,120]
[320912613,1711705844840,-500.0,0.00052054,120]
[320912614,1711705844849,-500.0,0.00052054,120]
[320912615,1711705844858,-500.0,0.00052054,120]
[320912616,1711705844868,-500.0,0.00052054,120]
[320912617,1711705844877,-500.0,0.00052054,120]
[320912618,1711705844886,-500.0,0.00052054,120]
[320912619,1711705844895,-1276.43,0.00052054,120]
[320912620,1711705844904,-246.93842472,0.00052054,120]
[320912621,1711705844914,-500.0,0.00052054,120]
[320912622,1711705844923,-929.15,0.00052054,120]
[320912623,1711705844933,-153.0,0.00052411,2]
[320912624,1711705844943,-153.0,0.00052411,2]
[320912625,1711705844952,-153.0,0.00052411,2]
[320912626,1711705844961,-153.0,0.00052411,2]
[320912627,1711705844972,-153.0,0.00052411,2]
[320912628,1711705844981,-153.0,0.00052411,2]
[320912629,1711705844991,-153.0,0.00052493,2]
[320912630,1711705845001,-153.0,0.00052493,2]
[320912631,1711705845010,-153.0,0.00052493,2]
[320912632,1711705845020,-153.0,0.00052493,2]
[320912633,1711705845029,-153.0,0.00052493,2]
[320912634,1711705845039,-153.0,0.00052493,2]
[320912635,1711705845049,-153.0,0.00052493,2]
[320912636,1711705845059,-153.0,0.00052493,2]
[320912637,1711705845069,-153.0,0.00052493,2]
[320912638,1711705845079,-153.0,0.00052521,2]
[320912639,1711705845088,-153.0,0.00052521,2]
[320912640,1711705845097,-202.0622477,0.0005263,2]
[320912641,1711705845106,-202.0622477,0.0005263,2]
[320912642,1711705845116,-202.0622477,0.0005263,2]
[320912643,1711705845125,-202.0622477,0.0005263,2]
[320912644,1711705845134,-202.0622477,0.0005263,2]
[320912645,1711705845145,-1000.0,0.00052776,2]
[320912646,1711705845154,-746.90009529,0.00052874,4]
[320912647,1711705845163,-155.28327893,0.00052874,4]
[320912648,1711705845173,-174.17003045,0.00052875,4]
[320912649,1711705845183,-1610.35282495,0.00052875,4]
[320912650,1711705845192,-500.0,0.00052876,120]
[320912651,1711705845202,-500.0,0.00052876,120]
[320912652,1711705845211,-500.0,0.00052876,120]
[320912653,1711705845221,-500.0,0.00052876,120]
[320912654,1711705845230,-500.0,0.00052876,120]
[320912655,1711705845239,-500.0,0.00052876,120]
[320912656,1711705845248,-500.0,0.00052876,120]
[320912657,1711705845258,-172.82436717,0.00052876,120]
[320912658,1711705845267,-500.0,0.00052876,120]
[320912659,1711705845277,-500.0,0.00052876,120]
[320912660,1711705845288,-526.70172385,0.00052876,120]
[320912661,1711705845299,-1174.55,0.00052876,120]
[320912662,1711705845308,-500.0,0.00052876,120]
[320912663,1711705845317,-257.15650077,0.00052876,120]
[320912664,1711705845328,-500.0,0.00052876,120]
[320912665,1711705845337,-500.0,0.00052876,120]
[320912666,1711705845347,-500.0,0.00052876,120]
[320912667,1711705845356,-500.0,0.00052876,120]
[320912668,1711705845365,-505.60345255,0.00052876,120]
[320912669,1711705845375,-500.0,0.00052876,120]
[320912670,1711705845384,-500.0,0.00052876,120]
[320912671,1711705845393,-500.0,0.00052876,120]
[320912672,1711705845402,-391.13720238,0.00052876,120]
[320912673,1711705845411,-500.0,0.00052876,120]
[320912674,1711705845420,-500.0,0.00052876,120]
[320912675,1711705845429,-960.77,0.00052876,2]
[320912676,1711705845439,-500.0,0.00052876,120]
[320912677,1711705845449,-500.0,0.00052876,120]
[320912678,1711705845459,-500.0,0.00052876,120]
[320912679,1711705845468,-500.0,0.00052876,120]
[320912680,1711705845479,-500.0,0.00052876,120]
[320912681,1711705845488,-500.0,0.00052876,120]
[320912682,1711705845498,-500.0,0.00052876,120]
[320912683,1711705845507,-500.0,0.00052876,120]
[320912684,1711705845517,-500.0,0.00052876,120]
[320912685,1711705845526,-500.0,0.00052876,120]
[320912686,1711705845535,-500.0,0.00052876,120]
[320912687,1711705845544,-500.0,0.00052876,120]
[320912688,1711705845554,-500.0,0.00052876,120]
[320912689,1711705845563,-404.64,0.00052876,120]
[320912690,1711705845573,-500.0,0.00052876,120]
[320912691,1711705845582,-500.0,0.00052876,120]
[320912692,1711705845591,-500.0,0.00052876,120]
[320912693,1711705845601,-500.0,0.00052876,120]
[320912694,1711705845611,-500.0,0.00052876,120]
[320912695,1711705845621,-500.0,0.00052876,120]
[320912696,1711705845630,-500.0,0.00052876,120]
[320912697,1711705845639,-500.0,0.00052876,120]
[320912698,1711705845650,-500.0,0.00052876,120]
[320912699,1711705845659,-501.43546611,0.00052876,120]
[320912700,1711705845669,-500.0,0.00052876,120]
[320912701,1711705845678,-500.0,0.00052876,120]
[320912702,1711705845687,-500.0,0.00052876,120]
[320912703,1711705845696,-500.0,0.00052876,120]
[320912704,1711705845706,-643.48197689,0.00052876,120]
[320912705,1711705845715,-500.0,0.00052876,120]
[320912706,1711705845725,-2930.45,0.00052876,120]
[320912707,1711705845734,-500.0,0.00052876,120]
[320912708,1711705845743,-500.0,0.00052876,120]
[320912709,1711705845753,-500.0,0.00052876,120]
[320912710,1711705845762,-500.0,0.00052876,120]
[320912711,1711705845771,-1242.54,0.00052876,120]
[320912712,1711705845781,-500.0,0.00052876,120]
[320912713,1711705845790,-254.5285871,0.00052876,120]
[320912714,1711705845799,-500.0,0.00052876,120]
[320912715,1711705845808,-500.0,0.00052876,120]
[320912716,1711705845817,-383.24017685,0.00052876,120]
[320912717,1711705845828,-629.21,0.00052876,120]
[320912718,1711705845837,-500.0,0.00052876,120]
[320912719,1711705845847,-500.0,0.00052876,120]
[320912720,1711705845856,-1774.19,0.00052876,120]
[320912721,1711705845866,-607.42,0.00052876,120]
[320912722,1711705845876,-733.98,0.00052876,120]
[320912723,1711705845885,-500.0,0.00052876,120]
[320912724,1711705845895,-2281.43,0.00052876,120]
[320912725,1711705845904,-500.0,0.00052876,120]
[320912726,1711705845914,-1233.8,0.00052876,120]
[320912727,1711705845923,-1796.29,0.00052876,120]
[320912728,1711705845932,-528.43,0.00052876,120]
[320912729,1711705845942,-500.0,0.00052876,120]
[320912730,1711705845951,-7923.48,0.00052876,120]
[320912731,1711705845960,-500.0,0.00052876,120]
[320912732,1711705845971,-500.0,0.00052876,120]
[320912733,1711705845980,-1236.16,0.00052876,120]
[320912734,1711705845989,-500.0,0.00052876,120]
[320912735,1711705845999,-500.0,0.00052876,120]
[320912736,1711705846008,-1252.98,0.00052876,120]
[320912737,1711705846017,-500.0,0.00052876,120]
[320912738,1711705846027,-16523.68,0.00052876,90]
[320912739,1711705846036,-715.72,0.00052876,120]
[320912740,1711705846045,-500.0,0.00052876,120]
[320912741,1711705846055,-4151.06,0.00052876,21]
[320912742,1711705846063,-47.11143187,0.00052876,120]
[320912745,1711705846081,-355.33,0.00052876,120]
[320912749,1711705846119,-109.16886984,0.00052876,120]
[320912750,1711705846129,-500.0,0.00052876,120]
[320912751,1711705846139,-1065.81,0.00052876,120]
[320912752,1711705846148,-696.95,0.00052876,120]
[320912753,1711705846158,-500.0,0.00052876,120]
[320912754,1711705846167,-500.0,0.00052876,120]
[320912755,1711705846176,-500.0,0.00052876,120]
[320912756,1711705846185,-500.0,0.00052876,120]
[320912757,1711705846194,-500.0,0.00052876,120]
[320912758,1711705846203,-500.0,0.00052876,120]
[320912759,1711705846213,-500.0,0.00052876,60]
[320912760,1711705846223,-2453.50765293,0.00052876,120]
[320912761,1711705846235,-3437.94234707,0.00052876,120]
[320912763,1711705846244,-500.0,0.00052876,120]
[320912765,1711705846254,-1932.01,0.00052876,120]
[320912767,1711705846263,-500.0,0.00052876,120]
[320912769,1711705846273,-461.8776057,0.00052876,120]
[320912771,1711705846282,-500.0,0.00052876,120]
[320912773,1711705846292,-781.2,0.00052876,120]
[320912774,1711705846303,-500.0,0.00052876,120]
[320912776,1711705846312,-500.0,0.00052876,120]
[320912778,1711705846322,-500.0,0.00052876,120]
[320912780,1711705846331,-500.0,0.00052876,120]
[320912782,1711705846345,-500.0,0.00052876,120]
[320912783,1711705846356,-123.40650692,0.00052876,120]
[320912784,1711705846372,-376.59349308,0.00052876,120]
[320912785,1711705846381,-1276.43,0.00052876,120]
[320912786,1711705846391,-500.0,0.00052876,120]
[320912787,1711705846400,-929.15,0.00052876,120]
[320912788,1711705846410,-153.0,0.00052877,2]
[320912789,1711705846419,-153.0,0.00052877,2]
[320912790,1711705846428,-153.0,0.00052877,2]
[320912791,1711705846438,-153.0,0.00052877,2]
[320912792,1711705846447,-2158.0547352,0.000529,2]
[320912793,1711705846457,-2811.53462742,0.00052919,30]
[320912794,1711705846468,-202.0622477,0.00052959,2]
[320912795,1711705846477,-202.0622477,0.00052959,2]
[320912796,1711705846487,-202.0622477,0.00052959,2]
[320912797,1711705846496,-202.0622477,0.00052959,2]
[320912798,1711705846505,-202.0622477,0.00052959,2]
[320912799,1711705846515,-429.4128031,0.00052959,2]
[320912809,1711705846589,-153.0,0.00052959,2]
[320912811,1711705846610,-153.0,0.00052959,2]
[320912813,1711705846620,-153.0,0.00052959,2]
[320912815,1711705846629,-153.0,0.00052959,2]
[320912817,1711705846638,-153.0,0.00052959,2]
[320912819,1711705846647,-153.0,0.00052959,2]
[320912820,1711705846656,-154.6654885,0.00052959,2]
[320912822,1711705846666,-292.85,0.0005297,35]
[320912824,1711705846675,-2611.0,0.0005297,35]
[320912826,1711705846684,-150.5,0.0005298,35]
[320912828,1711705846694,-2611.0,0.0005298,35]
[320912830,1711705846703,-150.5,0.0005299,35]
[320912832,1711705846713,-2611.0,0.0005299,35]
[320912835,1711705846722,-155.99996299,0.00052998,4]
[320912836,1711705846732,-369.77143074,0.00052998,4]
[320912838,1711705846741,-776.79435194,0.00052999,4]
[320912840,1711705846751,-1000.0,0.00052999,120]
[320912842,1711705846761,-3564.44002717,0.00053,15]
[320912844,1711705846774,-330.02309139,0.00053,15]
[320912846,1711705846930,-426.37989266,0.00052052,4]
[320912847,1711705846939,-202.0622477,0.0005263,2]
[320912848,1711705846949,-2185.32665234,0.00053,15]
[320912849,1711705846961,-348.8293796,0.00053,15]
[320912850,1711705846978,-10449.32251511,0.00053,15]
[320912865,1711706090231,-300.0,0.00041144,3]
[320912866,1711706090254,-19870.20595843,0.00043333,2]
[320912970,1711707032832,-248.43729999,0.00039971,4]
[320912972,1711707032852,-179.252085,0.00039981,2]
[320912974,1711707032864,-200.727947,0.00040224,120]
[320912976,1711707032874,-243.144153,0.00040226,2]
[320912977,1711707032884,-166.666667,0.00041096,2]
[320912979,1711707032894,-195.28431431,0.00041167,6]
[320912980,1711707032904,-1548.13941847,0.00041233,2]
[320912981,1711707032914,-499.77057786,0.00041247,4]
[320912982,1711707032923,-409.79613865,0.00041249,4]
[320912983,1711707032933,-4223.95543042,0.00041249,2]
[320913045,1711707038660,-470.94318688,0.0003997,4]
[320913047,1711707038674,-451.52480455,0.0003997,4]
[320913049,1711707038683,-5706.22156324,0.00041249,2]
[320913052,1711707038696,-1008.13480085,0.00041249,2]
[320913157,1711707040766,-499.77057786,0.00041249,2]
[320913242,1711707043874,-3353.5,0.00041249,2]
[320913243,1711707043887,-4939.43414611,0.00041249,2]
[320913244,1711707043900,-535.72922027,0.00041249,2]
[320913245,1711707043913,-1805.0,0.00041249,2]
[320913246,1711707043941,-10836.20423242,0.00041249,2]
[320913264,1711707046783,-952.01006936,0.00041249,2]
[320913265,1711707046793,-13997.88559193,0.00041249,2]
[320913266,1711707046802,-5921.33431972,0.00041249,2]
[320913267,1711707046812,-19898.69337651,0.00041249,2]
[320913268,1711707046821,-4281.67067749,0.00041249,2]
[320913269,1711707046830,-1013.96812273,0.00041249,10]
[320913270,1711707046840,-1000.0,0.00041272,2]
[320913271,1711707046849,-23293.3820944,0.000427,2]
[320913272,1711707046859,-13398.92933393,0.00043333,4]
[320913273,1711707046868,-154.98450155,0.00043333,4]
[320913274,1711707046877,-1548.13941847,0.00046233,2]
[320913275,1711707046887,-200.727947,0.00046928,120]
[320913276,1711707046897,-153.0,0.00048706,2]
[320913277,1711707046907,-307.6218583,0.00049499,2]
[320913278,1711707046916,-293.7623494,0.000495,2]
[320913279,1711707046925,-5229.77851325,0.00049948,15]
[320913280,1711707046935,-326.24677815,0.00049999,4]
[320913281,1711707046945,-31538.97877552,0.0005,120]
[320913282,1711707046956,-4769.45091453,0.0005,120]
[320913283,1711707046968,-3638.83024576,0.0005,120]
[320913284,1711707046977,-337.12691269,0.00050348,4]
[320913285,1711707046986,-1015.2,0.0005091,120]
[320913286,1711707046996,-230.0,0.00051,120]
[320913287,1711707047005,-230.0,0.00051027,120]
[320913288,1711707047014,-1520.84284155,0.00051233,2]
[320913289,1711707047028,-27.29657692,0.00051233,2]
[320913291,1711707047037,-4843.92220737,0.00051952,4]
[320913293,1711707047047,-1000.0,0.00051954,2]
[320913294,1711707047056,-780.7394247,0.00052053,4]
[320913295,1711707047065,-2891.62047874,0.00052054,61]
[320913296,1711707047075,-1122.08,0.00052054,120]
[320913298,1711707047085,-500.0,0.00052054,120]
[320913299,1711707047094,-500.0,0.00052054,120]
[320913300,1711707047104,-500.0,0.00052054,120]
[320913301,1711707047113,-500.0,0.00052054,120]
[320913302,1711707047122,-1295.94,0.00052054,2]
[320913303,1711707047132,-321.84490936,0.00052054,120]
[320913305,1711707047141,-500.0,0.00052054,120]
[320913308,1711707047151,-500.0,0.00052054,120]
[320913309,1711707047160,-500.0,0.00052054,120]
[320913311,1711707047169,-500.0,0.00052054,120]
[320913313,1711707047179,-500.0,0.00052054,120]
[320913315,1711707047187,-503.68781414,0.00052054,120]
[320913317,1711707047197,-500.0,0.00052054,120]
[320913319,1711707047206,-500.0,0.00052054,120]
[320913321,1711707047215,-418.32908891,0.00052054,120]
[320913323,1711707047224,-303.95111638,0.00052054,120]
[320918141,1711708232729,-415.50470461,0.00049133,2]
[320918143,1711708232738,-3186.28931036,0.00049999,120]
[320918145,1711708232748,-2316.47173248,0.0005,2]
[320918147,1711708232757,-134.58455453,0.00050541,2]
[320918633,1711708237832,-160.46249647,0.00050541,2]
[320918635,1711708237841,-140.93519595,0.0005056,120]
[320918835,1711708239932,-59.79275105,0.0005056,120]
[320918837,1711708239941,-167.658928,0.00050741,2]
[320918839,1711708239951,-202.0622477,0.00050986,2]
[320918841,1711708239962,-200.0,0.00050987,2]
[320918843,1711708239971,-172.0,0.00051,120]
[320918845,1711708239983,-172.0,0.00051027,120]
[320918847,1711708239992,-202.0622477,0.00051278,2]
[320918849,1711708240002,-449.95331137,0.00051807,4]
[320918851,1711708240012,-390.29417959,0.00051807,4]
[320918855,1711708240031,-5000.0,0.0005191,2]
[320918857,1711708240042,-155.84413841,0.00051953,2]
[320918859,1711708240051,-155.84413841,0.00051954,2]
[320918861,1711708240061,-155.84413841,0.00051954,2]
[320918863,1711708240071,-200.0,0.00051987,2]
[320918865,1711708240081,-209.79521307,0.00052,120]
[320918867,1711708240091,-202.0622477,0.00052,2]
[320918869,1711708240101,-27681.45,0.00052,120]
[320918871,1711708240112,-780.7394247,0.00052053,4]
[320918872,1711708240121,-156.24803986,0.00052054,4]
[320918873,1711708240131,-500.0,0.00052054,120]
[320918874,1711708240141,-500.0,0.00052054,120]
[320918875,1711708240150,-517.20661737,0.00052054,120]
[320918876,1711708240159,-500.0,0.00052054,120]
[320918877,1711708240168,-500.0,0.00052054,120]
[320918879,1711708240178,-500.0,0.00052054,120]
[320918881,1711708240187,-502.03508552,0.00052054,120]
[320918883,1711708240197,-500.0,0.00052054,120]
[320918886,1711708240210,-500.0,0.00052054,120]
[320918887,1711708240219,-500.0,0.00052054,120]
[320918889,1711708240229,-500.0,0.00052054,120]
[320918892,1711708240239,-500.0,0.00052054,120]
[320918894,1711708240249,-500.0,0.00052054,120]
[320918896,1711708240259,-500.0,0.00052054,120]
[320918898,1711708240268,-500.0,0.00052054,120]
[320918900,1711708240278,-500.0,0.00052054,120]
[320918902,1711708240288,-500.0,0.00052054,120]